fUSD/lending_fUSD_20260324
["ID","MTS","AMOUNT","RATE_DAILY","PERIOD"]
[408847993,1774338812958,-1260.51,0.00044657,120]
[408847994,1774338812968,-663.27,0.00044657,120]
[408847995,1774338812977,-500.0,0.00044657,120]
[408847996,1774338812986,-1454.94,0.00044657,120]
[408847997,1774338812995,-500.0,0.00044657,120]
[408847998,1774338813004,-1601.87,0.00044657,120]
[408847999,1774338813013,-1108.88,0.00044657,120]
[408848000,1774338813022,-1258.26,0.00044657,120]
[408848001,1774338813031,-500.0,0.00044657,120]
[408848002,1774338813041,-500.0,0.00044657,120]
[408848003,1774338813050,-631.57,0.00044657,120]
[408848004,1774338813059,-500.0,0.00044657,120]
[408848005,1774338813068,-1791.18,0.00044657,120]
[408848006,1774338813077,-514.08,0.00044657,120]
[408848007,1774338813086,-585.76,0.00044657,120]
[408848008,1774338813096,-1447.52,0.00044657,120]
[408848009,1774338813105,-500.0,0.00044657,120]
[408848010,1774338813114,-634.53,0.00044657,120]
[408848011,1774338813124,-500.0,0.00044657,120]
[408848012,1774338813134,-500.0,0.00044657,120]
[408848013,1774338813144,-500.0,0.00044657,120]
[408848014,1774338813154,-514.43,0.00044657,120]
[408848015,1774338813163,-500.0,0.00044657,120]
[408848016,1774338813172,-1530.3,0.00044657,120]
[408848017,1774338813182,-1437.77,0.00044657,120]
[408848018,1774338813190,-735.64,0.00044657,120]
[408848019,1774338813199,-500.0,0.00044657,120]
[408848020,1774338813209,-798.73,0.00044657,120]
[408848021,1774338813217,-500.0,0.00044657,120]
[408848022,1774338813227,-2864.08,0.00044657,120]
[408848023,1774338813237,-602.52795252,0.00044657,120]
[408848024,1774338813246,-534.31,0.00044657,120]
[408848025,1774338813255,-500.0,0.00044657,120]
[408848026,1774338813264,-800.61,0.00044657,120]
[408848027,1774338813273,-500.0,0.00044657,120]
[408848028,1774338813283,-500.0,0.00044657,120]
[408848029,1774338813292,-1519.14,0.00044657,120]
[408848030,1774338813303,-579.61,0.00044657,120]
[408848031,1774338813314,-971.22,0.00044657,120]
[408848032,1774338813323,-233.24321441,0.00044657,120]
[408848033,1774338813332,-2175.73,0.00044657,120]
[408848034,1774338813341,-1404.43,0.00044657,120]
[408848035,1774338813350,-651.63,0.00044657,120]
[408848036,1774338813359,-500.0,0.00044657,120]
[408848037,1774338813368,-769.19,0.00044657,120]
[408848038,1774338813377,-666.77,0.00044657,120]
[408848039,1774338813385,-1046.52,0.00044657,120]
[408848040,1774338813394,-500.0,0.00044657,120]
[408848041,1774338813406,-547.19,0.00044657,120]
[408848042,1774338813415,-613.47,0.00044657,120]
[408848043,1774338813424,-500.0,0.00044657,120]
[408848044,1774338813433,-664.14,0.00044657,120]
[408848045,1774338813443,-500.55,0.00044657,120]
[408848046,1774338813452,-1409.42,0.00044657,120]
[408848047,1774338813461,-500.0,0.00044657,120]
[408848048,1774338813469,-1958.04,0.00044657,120]
[408848049,1774338813481,-500.0,0.00044657,120]
[408848050,1774338813491,-845.98,0.00044657,120]
[408848051,1774338813500,-788.97,0.00044657,120]
[408848052,1774338813509,-415.67781235,0.00044657,120]
[408848053,1774338813519,-979.08,0.00044657,120]
[408848054,1774338813529,-2271.51,0.00044657,120]
[408848055,1774338813538,-798.9,0.00044657,120]
[408848056,1774338813547,-785.73,0.00044657,120]
[408848057,1774338813556,-1319.48,0.00044657,120]
[408848058,1774338813566,-898.9,0.00044657,120]
[408848059,1774338813576,-1026.81,0.00044657,120]
[408848060,1774338813585,-896.49,0.00044657,2]
[408848061,1774338813596,-591.09,0.00044657,120]
[408848062,1774338813608,-1571.69,0.00044657,120]
[408848063,1774338813618,-951.54,0.00044657,120]
[408848064,1774338813628,-500.0,0.00044657,120]
[408848065,1774338813638,-1576.67,0.00044657,120]
[408848066,1774338813647,-533.43,0.00044657,120]
[408848067,1774338813657,-500.0,0.00044657,120]
[408848068,1774338813667,-1797.77,0.00044657,120]
[408848069,1774338813676,-641.68,0.00044657,30]
[408848070,1774338813686,-908.05,0.00044657,120]
[408848071,1774338813695,-978.03,0.00044657,120]
[408848072,1774338813704,-500.0,0.00044657,120]
[408848073,1774338813713,-500.0,0.00044657,120]
[408848074,1774338813723,-500.0,0.00044657,120]
[408848075,1774338813733,-1254.4,0.00044657,120]
[408848076,1774338813742,-500.0,0.00044657,120]
[408848077,1774338813752,-890.53,0.00044657,120]
[408848078,1774338813761,-794.03,0.00044657,120]
[408848079,1774338813770,-500.0,0.00044657,120]
[408848080,1774338813780,-588.33,0.00044657,120]
[408848081,1774338813790,-954.83,0.00044657,120]
[408848082,1774338813799,-2073.54,0.00044657,120]
[408848083,1774338813809,-642.99,0.00044657,120]
[408848084,1774338813818,-945.89,0.00044657,120]
[408848085,1774338813828,-2204.1,0.00044657,120]
[408848086,1774338813837,-500.0,0.00044657,120]
[408848087,1774338813847,-610.5,0.00044657,120]
[408848088,1774338813856,-1685.9,0.00044657,120]
[408848089,1774338813865,-500.0,0.00044657,120]
[408848090,1774338813874,-2030.17,0.00044657,30]
[408848091,1774338813883,-2121.36,0.00044657,120]
[408848092,1774338813892,-2554.76,0.00044657,120]
[408848093,1774338813901,-976.45,0.00044657,120]
[408848094,1774338813912,-659.65,0.00044657,120]
[408848095,1774338813921,-534.01,0.00044657,120]
[408848096,1774338813931,-1990.0,0.00044657,120]
[408848097,1774338813940,-500.0,0.00044657,30]
[408848098,1774338813950,-1204.77,0.00044657,120]
[408848099,1774338813959,-1000.85,0.00044657,120]
[408848100,1774338813969,-618.78,0.00044657,120]
[408848101,1774338813979,-1087.07,0.00044657,120]
[408848102,1774338813988,-500.0,0.00044657,120]
[408848103,1774338813999,-758.91,0.00044657,120]
[408848104,1774338814010,-861.35,0.00044657,120]
[408848105,1774338814020,-639.53,0.00044657,120]
[408848106,1774338814032,-964.47,0.00044657,120]
[408848107,1774338814044,-1790.64,0.00044657,120]
[408848108,1774338814054,-817.12,0.00044657,120]
[408848109,1774338814066,-500.0,0.00044657,120]
[408848110,1774338814078,-1048.96,0.00044657,120]
[408848111,1774338814088,-500.0,0.00044657,120]
[408848112,1774338814098,-617.31,0.00044657,120]
[408848113,1774338814107,-1377.48,0.00044657,120]
[408848114,1774338814117,-1373.09,0.00044657,120]
[408848115,1774338814127,-950.57,0.00044657,120]
[408848116,1774338814136,-500.0,0.00044657,120]
[408848117,1774338814146,-1252.8,0.00044657,120]
[408848118,1774338814155,-500.0,0.00044657,120]
[408848119,1774338814165,-3697.72,0.00044657,2]
[408848120,1774338814174,-500.0,0.00044657,120]
[408848121,1774338814183,-1527.96,0.00044657,120]
[408848122,1774338814193,-589.22,0.00044657,120]
[408848123,1774338814202,-658.92,0.00044657,120]
[408848124,1774338814212,-541.68,0.00044657,120]
[408848125,1774338814222,-1047.63,0.00044657,120]
[408848126,1774338814231,-641.73,0.00044657,120]
[408848127,1774338814242,-570.14,0.00044657,120]
[408848128,1774338814252,-500.0,0.00044657,120]
[408848129,1774338814262,-516.11,0.00044657,120]
[408848130,1774338814272,-1329.81,0.00044657,120]
[408848131,1774338814282,-2000.22,0.00044657,120]
[408848132,1774338814292,-1988.85,0.00044657,120]
[408848133,1774338814302,-542.54367462,0.00044657,120]
[408848134,1774338814312,-2821.24,0.00044657,120]
[408848135,1774338814323,-627.92,0.00044657,120]
[408848136,1774338814333,-500.0,0.00044657,90]
[408848137,1774338814343,-819.97,0.00044657,120]
[408848138,1774338814352,-500.0,0.00044657,120]
[408848139,1774338814362,-1024.12,0.00044657,120]
[408848140,1774338814372,-272.68,0.00044657,120]
[408848141,1774338814381,-1947.88,0.00044657,120]
[408848142,1774338814391,-500.0,0.00044657,120]
[408848143,1774338814401,-659.88,0.00044657,120]
[408848144,1774338814412,-810.31,0.00044657,120]
[408848145,1774338814422,-1590.35,0.00044657,120]
[408848146,1774338814432,-688.15,0.00044657,120]
[408848147,1774338814442,-500.0,0.00044657,120]
[408848148,1774338814453,-4167.56,0.00044657,14]
[408848149,1774338814463,-515.79,0.00044657,120]
[408848150,1774338814474,-787.69,0.00044657,120]
[408848151,1774338814489,-698.8,0.00044657,120]
[408848152,1774338814499,-653.93,0.00044657,120]
[408848153,1774338814509,-866.06,0.00044657,120]
[408848154,1774338814520,-2147.96,0.00044657,120]
[408848155,1774338814531,-936.69,0.00044657,120]
[408848156,1774338814541,-500.0,0.00044657,120]
[408848157,1774338814552,-898.82,0.00044657,120]
[408848158,1774338814562,-627.57,0.00044657,120]
[408848159,1774338814573,-1680.93,0.00044657,120]
[408848160,1774338814583,-500.0,0.00044657,120]
[408848161,1774338814594,-516.86,0.00044657,120]
[408848162,1774338814605,-1731.35,0.00044657,120]
[408848163,1774338814615,-1894.96,0.00044657,120]
[408848164,1774338814625,-570.78,0.00044657,120]
[408848165,1774338814636,-833.21,0.00044657,120]
[408848166,1774338814647,-500.0,0.00044657,120]
[408848167,1774338814657,-678.17,0.00044657,120]
[408848168,1774338814667,-500.0,0.00044657,120]
[408848169,1774338814678,-1154.53,0.00044657,120]
[408848170,1774338814688,-532.48,0.00044657,120]
[408848171,1774338814699,-1168.04,0.00044657,120]
[408848172,1774338814710,-500.0,0.00044657,120]
[408848173,1774338814720,-1084.15,0.00044657,120]
[408848174,1774338814730,-500.0,0.00044657,120]
[408848175,1774338814740,-1543.41,0.00044657,120]
[408848176,1774338814751,-524.04,0.00044657,120]
[408848177,1774338814760,-1735.5,0.00044657,120]
[408848178,1774338814770,-528.45,0.00044657,120]
[408848179,1774338814780,-507.54,0.00044657,60]
[408848180,1774338814791,-500.0,0.00044657,120]
[408848181,1774338814801,-510.28888233,0.00044657,120]
[408848182,1774338814811,-1522.45,0.00044657,120]
[408848183,1774338814821,-1728.67,0.00044657,120]
[408848184,1774338814831,-1193.94,0.00044657,120]
[408848185,1774338814842,-2483.59,0.00044657,120]
[408848186,1774338814852,-1145.4,0.00044657,120]
[408848187,1774338814862,-500.0,0.00044657,120]
[408848188,1774338814872,-785.33,0.00044657,120]
[408848189,1774338814882,-802.88,0.00044657,120]
[408848190,1774338814892,-773.31,0.00044657,120]
[408848191,1774338814902,-504.31,0.00044657,120]
[408848192,1774338814912,-1766.83,0.00044657,120]
[408848193,1774338814922,-766.14,0.00044657,120]
[408848194,1774338814932,-655.33,0.00044657,120]
[408848195,1774338814942,-500.0,0.00044657,120]
[408848196,1774338814953,-8117.29,0.00044657,120]
[408848197,1774338814963,-1429.82,0.00044657,120]
[408848198,1774338814972,-168.5111592,0.00044657,120]
[408848199,1774338814983,-500.0,0.00044657,120]
[408848200,1774338814993,-1503.53,0.00044657,120]
[408848201,1774338815003,-1630.29,0.00044657,120]
[408848202,1774338815014,-841.35,0.00044657,120]
[408848203,1774338815024,-673.28,0.00044657,120]
[408848204,1774338815034,-1387.91,0.00044657,120]
[408848205,1774338815045,-500.0,0.00044657,7]
[408848206,1774338815055,-500.0,0.00044657,120]
[408848207,1774338815065,-604.72,0.00044657,120]
[408848208,1774338815076,-1280.15,0.00044657,120]
[408848209,1774338815086,-680.83,0.00044657,120]
[408848210,1774338815096,-1687.32,0.00044657,120]
[408848211,1774338815107,-553.79,0.00044657,120]
[408848212,1774338815116,-500.0,0.00044657,120]
[408848213,1774338815126,-500.0,0.00044657,120]
[408848214,1774338815136,-583.19,0.00044657,120]
[408848215,1774338815147,-500.0,0.00044657,120]
[408848216,1774338815157,-500.0,0.00044657,120]
[408848217,1774338815167,-765.82,0.00044657,120]
[408848218,1774338815177,-500.0,0.00044657,120]
[408848219,1774338815188,-500.0,0.00044657,120]
[408848220,1774338815198,-2264.25,0.00044657,120]
[408848221,1774338815208,-1037.3,0.00044657,30]
[408848222,1774338815219,-1021.05,0.00044657,120]
[408848223,1774338815231,-2339.0,0.00044657,120]
[408848224,1774338815241,-602.59,0.00044657,120]
[408848225,1774338815251,-1084.43,0.00044657,120]
[408848226,1774338815261,-1040.73,0.00044657,120]
[408848227,1774338815271,-500.0,0.00044657,120]
[408848228,1774338815281,-851.46,0.00044657,120]
[408848229,1774338815291,-1082.75,0.00044657,120]
[408848230,1774338815301,-1633.66,0.00044657,120]
[408848231,1774338815311,-4460.36,0.00044657,120]
[408848232,1774338815321,-1090.06,0.00044657,120]
[408848233,1774338815332,-1298.83,0.00044657,120]
[408848234,1774338815342,-545.35,0.00044657,120]
[408848235,1774338815352,-911.41,0.00044657,120]
[408848236,1774338815362,-1399.28,0.00044657,120]
[408848237,1774338815372,-4326.06,0.00044657,120]
[408848238,1774338815382,-637.83,0.00044657,120]
[408848239,1774338815393,-863.52,0.00044657,60]
[408848240,1774338815408,-521.47,0.00044657,120]
[408848241,1774338815419,-500.0,0.00044657,120]
[408848242,1774338815429,-500.0,0.00044657,14]
[408848243,1774338815439,-500.0,0.00044657,120]
[408848244,1774338815450,-1041.22,0.00044657,120]
[408848245,1774338815463,-500.0,0.00044657,120]
[408848246,1774338815472,-711.52,0.00044657,120]
[408848247,1774338815486,-2031.81,0.00044657,120]
[408848248,1774338815495,-790.74,0.00044657,120]
[408848249,1774338815506,-1067.59,0.00044657,120]
[408848250,1774338815515,-500.0,0.00044657,120]
[408848251,1774338815527,-1154.84,0.00044657,120]
[408848252,1774338815537,-1104.3,0.00044657,120]
[408848253,1774338815547,-2348.54,0.00044657,120]
[408848254,1774338815558,-500.0,0.00044657,120]
[408848255,1774338815568,-1560.13,0.00044657,120]
[408848256,1774338815579,-541.43,0.00044657,120]
[408848257,1774338815590,-500.0,0.00044657,120]
[408848258,1774338815600,-471.04809932,0.00044657,120]
[408848259,1774338815611,-535.0,0.00044657,120]
[408848260,1774338815621,-858.21,0.00044657,120]
[408848261,1774338815631,-521.42518492,0.00044657,120]
[408848262,1774338815641,-500.0,0.00044657,120]
[408848263,1774338815653,-1539.96,0.00044657,120]
[408848264,1774338815663,-1021.53,0.00044657,120]
[408848265,1774338815674,-592.83,0.00044657,120]
[408848266,1774338815684,-519.74,0.00044657,120]
[408848267,1774338815694,-500.0,0.00044657,120]
[408848268,1774338815706,-813.09,0.00044657,120]
[408848269,1774338815716,-1598.49,0.00044657,120]
[408848270,1774338815726,-2149.78,0.00044657,120]
[408848271,1774338815736,-513.33,0.00044657,120]
[408848272,1774338815746,-833.01,0.00044657,120]
[408848273,1774338815756,-656.49,0.00044657,120]
[408848274,1774338815766,-700.59,0.00044657,120]
[408848275,1774338815777,-500.0,0.00044657,120]
[408848276,1774338815787,-728.42,0.00044657,120]
[408848277,1774338815797,-500.0,0.00044657,120]
[408848278,1774338816134,-500.0,0.00044657,120]
[408848279,1774338816181,-851.0,0.00044658,120]
[408848280,1774338816191,-307.40432565,0.00044672,30]
[408848281,1774338816200,-2804.0,0.00044688,16]
[408848282,1774338816209,-8005.967067,0.000447,7]
[408848283,1774338816219,-35083.5,0.00044777,60]
[408848284,1774338816228,-151.0,0.000448,120]
[408848285,1774338816237,-10000.0,0.000448,120]
[408848286,1774338816247,-2804.0,0.0004481,16]
[408848287,1774338816256,-150.0,0.00044812,120]
[408848288,1774338816265,-9791.7932,0.00044844,30]
[408848289,1774338816275,-150.0,0.00044844,120]
[408848290,1774338816284,-2804.0,0.00044851,16]
[408848291,1774338816293,-2804.0,0.00044863,16]
[408848292,1774338816303,-1569.0,0.00044871,16]
[408848293,1774338816315,-1580.0,0.00044883,16]
[408848294,1774338816326,-150.0,0.00044895,120]
[408848295,1774338816335,-1811.8428,0.000449,120]
[408848296,1774338816345,-568.44,0.000449,90]
[408848297,1774338816354,-460.5203,0.000449,120]
[408848298,1774338816363,-185687.74576332,0.000449,30]
[408848299,1774338816372,-199.2062522,0.00044921,7]
[408848300,1774338816382,-2735.451747,0.0004493,60]
[408848301,1774338816391,-2735.45174699,0.0004493,60]
[408848302,1774338816402,-743.4779064,0.00044931,120]
[408848303,1774338816415,-590.67,0.00044931,120]
[408848304,1774338816425,-1000.0,0.00044931,120]
[408848305,1774338816434,-705.66,0.00044931,120]
[408848306,1774338816444,-943.74,0.00044931,120]
[408848307,1774338816455,-500.0,0.00044931,120]
[408848308,1774338816465,-166.18359003,0.00044931,120]
[408848309,1774338816474,-507.3,0.00044931,120]
[408848310,1774338816485,-568.39,0.00044931,120]
[408848311,1774338816495,-729.64,0.00044931,120]
[408848312,1774338816504,-639.9,0.00044931,120]
[408848313,1774338816514,-553.16662659,0.00044931,14]
[408848314,1774338816524,-651.21,0.00044931,120]
[408848315,1774338816534,-500.0,0.00044931,120]
[408848316,1774338816543,-524.6,0.00044931,120]
[408848317,1774338816553,-978.66,0.00044931,120]
[408848318,1774338816563,-500.0,0.00044931,30]
[408848319,1774338816572,-1180.13,0.00044931,120]
[408848320,1774338816582,-500.0,0.00044931,120]
[408848321,1774338816591,-574.37,0.00044931,120]
[408848322,1774338816601,-1281.45,0.00044931,120]
[408848323,1774338816611,-1329.75,0.00044931,120]
[408848324,1774338816620,-500.0,0.00044931,120]
[408848325,1774338816630,-500.0,0.00044931,90]
[408848326,1774338816640,-880.66,0.00044931,5]
[408848327,1774338816649,-599.98,0.00044931,120]
[408848328,1774338816659,-651.22,0.00044931,120]
[408848329,1774338816670,-500.0,0.00044931,120]
[408848330,1774338816679,-539.9,0.00044931,120]
[408848331,1774338816689,-604.85,0.00044931,120]
[408848332,1774338816699,-1076.85,0.00044931,120]
[408848333,1774338816710,-766.13,0.00044931,120]
[408848334,1774338816719,-617.48,0.00044931,120]
[408848335,1774338816729,-500.0,0.00044931,120]
[408848336,1774338816738,-835.56,0.00044931,120]
[408848337,1774338816748,-792.41,0.00044931,120]
[408848338,1774338816758,-500.0,0.00044931,120]
[408848339,1774338816768,-1234.56,0.00044931,120]
[408848340,1774338816778,-890.18,0.00044931,120]
[408848341,1774338816788,-500.0,0.00044931,120]
[408848342,1774338816798,-1024.48,0.00044931,120]
[408848343,1774338816807,-500.0,0.00044931,120]
[408848344,1774338816818,-766.51,0.00044931,120]
[408848345,1774338816827,-677.14,0.00044931,120]
[408848346,1774338816837,-2135.18,0.00044931,120]
[408848347,1774338816847,-563.34,0.00044931,120]
[408848348,1774338816856,-1402.94,0.00044931,120]
[408848349,1774338816865,-761.77,0.00044931,120]
[408848350,1774338816874,-1465.28,0.00044931,120]
[408848351,1774338816884,-500.0,0.00044931,120]
[408848352,1774338816894,-500.0,0.00044931,120]
[408848353,1774338816905,-598.21,0.00044931,120]
[408848354,1774338816914,-500.0,0.00044931,120]
[408848355,1774338816924,-1412.93,0.00044931,120]
[408848356,1774338816933,-500.0,0.00044931,120]
[408848357,1774338816943,-846.4,0.00044931,120]
[408848358,1774338816953,-500.0,0.00044931,120]
[408848359,1774338816962,-804.53,0.00044931,120]
[408848360,1774338816972,-862.09,0.00044931,120]
[408848361,1774338816982,-967.16,0.00044931,120]
[408848362,1774338816991,-649.68,0.00044931,120]
[408848363,1774338817002,-897.41,0.00044931,120]
[408848364,1774338817011,-590.97343167,0.00044931,120]
[408848365,1774338817020,-1647.3,0.00044931,120]
[408848366,1774338817030,-500.0,0.00044931,120]
[408848367,1774338817040,-932.54,0.00044931,120]
[408848368,1774338817050,-1817.92,0.00044931,120]
[408848369,1774338817060,-500.0,0.00044931,120]
[408848370,1774338817069,-500.0,0.00044931,120]
[408848371,1774338817079,-1328.91,0.00044931,120]
[408848372,1774338817089,-1294.19,0.00044931,120]
[408848373,1774338817098,-500.0,0.00044931,120]
[408848374,1774338817108,-3681.23,0.00044931,120]
[408848375,1774338817117,-500.0,0.00044931,120]
[408848376,1774338817127,-500.0,0.00044931,120]
[408848377,1774338817136,-644.74,0.00044931,120]
[408848378,1774338817146,-688.63,0.00044931,120]
[408848379,1774338817155,-572.14,0.00044931,120]
[408848380,1774338817164,-500.0,0.00044931,120]
[408848381,1774338817174,-448.39014387,0.00044931,120]
[408848382,1774338817184,-1109.47,0.00044931,120]
[408848383,1774338817194,-500.0,0.00044931,120]
[408848384,1774338817204,-1361.64,0.00044931,120]
[408848385,1774338817214,-374.40373929,0.00044931,120]
[408848386,1774338817223,-1113.98,0.00044931,120]
[408848387,1774338817232,-500.0,0.00044931,120]
[408848388,1774338817242,-179.5890874,0.00044931,120]
[408848389,1774338817252,-804.84,0.00044931,120]
[408848390,1774338817262,-587.8,0.00044931,120]
[408848391,1774338817271,-895.35,0.00044931,120]
[408848392,1774338817280,-500.0,0.00044931,120]
[408848393,1774338817290,-640.6,0.00044931,120]
[408848394,1774338817300,-565.36438512,0.00044931,120]
[408848395,1774338817309,-1353.62,0.00044931,120]
[408848396,1774338817319,-500.0,0.00044931,120]
[408848397,1774338817328,-663.05,0.00044931,120]
[408848398,1774338817338,-500.0,0.00044931,120]
[408848399,1774338817348,-2022.99,0.00044931,120]
[408848400,1774338817357,-500.0,0.00044931,120]
[408848401,1774338817367,-993.61,0.00044931,120]
[408848402,1774338817376,-500.0,0.00044931,120]
[408848403,1774338817385,-526.3,0.00044931,120]
[408848404,1774338817395,-280.70113955,0.00044931,120]
[408848405,1774338817408,-803.74,0.00044931,120]
[408848406,1774338817417,-500.0,0.00044931,120]
[408848407,1774338817427,-593.39,0.00044931,120]
[408848408,1774338817436,-773.48,0.00044931,120]
[408848409,1774338817447,-500.0,0.00044931,120]
[408848410,1774338817458,-166.92877725,0.00044931,120]
[408848411,1774338817467,-500.0,0.00044931,120]
[408848412,1774338817478,-1169.17,0.00044931,120]
[408848413,1774338817487,-500.0,0.00044931,120]
[408848414,1774338817496,-253.33208527,0.00044931,120]
[408848415,1774338817506,-1339.98,0.00044931,120]
[408848416,1774338817516,-500.0,0.00044931,120]
[408848417,1774338817525,-599.34,0.00044931,120]
[408848418,1774338817535,-551.15,0.00044931,120]
[408848419,1774338817544,-1698.32,0.00044931,120]
[408848420,1774338817554,-1450.66,0.00044931,120]
[408848421,1774338817563,-501.10900635,0.00044931,120]
[408848422,1774338817574,-818.03,0.00044931,120]
[408848423,1774338817584,-157.645705,0.00044931,120]
[408848424,1774338817593,-620.94,0.00044931,2]
[408848425,1774338817603,-500.0,0.00044931,120]
[408848426,1774338817613,-500.0,0.00044931,120]
[408848427,1774338817623,-209.74797671,0.00044931,120]
[408848428,1774338817632,-500.0,0.00044931,120]
[408848429,1774338817643,-1515.34,0.00044931,120]
[408848430,1774338817652,-4192.59,0.00044931,120]
[408848431,1774338817663,-2475.9,0.00044931,120]
[408848432,1774338817672,-500.0,0.00044931,120]
[408848433,1774338817683,-500.0,0.00044931,120]
[408848434,1774338817693,-2035.37,0.00044931,120]
[408848435,1774338817702,-500.0,0.00044931,120]
[408848436,1774338817717,-1009.33,0.00044931,120]
[408848437,1774338817728,-857.75,0.00044931,120]
[408848438,1774338817738,-944.17,0.00044931,120]
[408848439,1774338817749,-1317.86,0.00044931,30]
[408848440,1774338817760,-826.35,0.00044931,120]
[408848441,1774338817773,-500.0,0.00044931,120]
[408848442,1774338817784,-588.23,0.00044931,120]
[408848443,1774338817794,-1144.87,0.00044931,120]
[408848444,1774338817804,-500.0,0.00044931,120]
[408848445,1774338817814,-500.0,0.00044931,120]
[408848446,1774338817824,-895.15,0.00044931,120]
[408848447,1774338817841,-1197.62,0.00044931,120]
[408848448,1774338817851,-500.0,0.00044931,120]
[408848449,1774338817861,-1494.6,0.00044931,120]
[408848450,1774338817877,-1086.62,0.00044931,120]
[408848451,1774338817891,-500.0,0.00044931,120]
[408848452,1774338817900,-500.0,0.00044931,120]
[408848453,1774338817910,-500.0,0.00044931,120]
[408848454,1774338817919,-946.8,0.00044931,120]
[408848455,1774338817928,-500.0,0.00044931,120]
[408848456,1774338817939,-713.74,0.00044931,120]
[408848457,1774338817948,-6072.1,0.00044931,120]
[408848458,1774338817960,-826.7,0.00044931,120]
[408848459,1774338817970,-1989.66,0.00044931,30]
[408848460,1774338817980,-552.86,0.00044931,120]
[408848461,1774338817989,-926.79,0.00044931,120]
[408848462,1774338817999,-500.0,0.00044931,120]
[408848463,1774338818008,-2329.55,0.00044931,120]
[408848464,1774338818018,-500.0,0.00044931,120]
[408848465,1774338818027,-847.68,0.00044931,120]
[408848466,1774338818037,-1646.81,0.00044931,120]
[408848467,1774338818046,-1090.68,0.00044931,120]
[408848468,1774338818055,-1885.93,0.00044931,120]
[408848469,1774338818065,-741.6,0.00044931,120]
[408848470,1774338818075,-500.0,0.00044931,120]
[408848471,1774338818084,-727.16,0.00044931,120]
[408848472,1774338818094,-712.06,0.00044931,120]
[408848473,1774338818103,-2107.35,0.00044931,120]
[408848474,1774338818113,-500.0,0.00044931,120]
[408848475,1774338818122,-365.42613532,0.00044931,120]
[408848476,1774338818131,-617.58,0.00044931,120]
[408848477,1774338818140,-2133.23,0.00044931,120]
[408848478,1774338818149,-201.92072933,0.00044931,120]
[408848479,1774338818159,-5833.33,0.00044931,120]
[408848480,1774338818169,-1039.39,0.00044931,120]
[408848481,1774338818178,-2468.56,0.00044931,120]
[408848482,1774338818188,-1366.12,0.00044931,120]
[408848483,1774338818197,-500.0,0.00044931,120]
[408848484,1774338818208,-1016.32,0.00044931,120]
[408848485,1774338818217,-784.59,0.00044931,120]
[408848486,1774338818226,-1478.69,0.00044931,120]
[408848487,1774338818236,-1259.9,0.00044931,120]
[408848488,1774338818245,-1107.99,0.00044931,120]
[408848489,1774338818254,-1114.05,0.00044931,120]
[408848490,1774338818263,-1519.93,0.00044931,120]
[408848491,1774338818272,-646.06,0.00044931,120]
[408848492,1774338818282,-1266.58,0.00044931,120]